[Event "NJSK 2022 Jeugd C"]
[Site "Almelo, Netherlands"]
[Date "2022.05.06"]
[Round "8.8"]
[White "Kazarjan, Gachatur"]
[Black "Agarwal, Pranav"]
[Result "1-0"]
[TimeControl "90min + 30sec/move"]
[WhiteElo "1661"]
[BlackElo "1531"]

1. e4 {[%clk 01:30:59]} {[%emt 00:45:18]} c5 {[%clk 01:30:44]} {[%emt
00:00:18]} 2. Nf3 {[%clk 01:31:24]} {[%emt 00:00:05]} a6 {[%clk 01:31:04]}
{[%emt 00:00:09]} 3. d4 {[%clk 01:31:49]} {[%emt 00:00:05]} cxd4 {[%clk
01:30:48]} {[%emt 00:00:46]} 4. Nxd4 {[%clk 01:32:07]} {[%emt 00:00:11]} Nf6
{[%clk 01:30:54]} {[%emt 00:00:24]} 5. Nc3 {[%clk 01:32:30]} {[%emt 00:00:08]}
e5 {[%clk 01:31:08]} {[%emt 00:00:15]} 6. Nf3 {[%clk 01:32:49]} {[%emt
00:00:11]} Bb4 {[%clk 01:30:32]} {[%emt 00:01:06]} 7. a3 {[%clk 01:32:12]}
{[%emt 00:01:07]} Ba5 {[%clk 01:29:17]} {[%emt 00:01:45]} 8. b4 {[%clk
01:31:54]} {[%emt 00:00:48]} Bb6 {[%clk 01:29:13]} {[%emt 00:00:34]} 9. Bg5
{[%clk 01:31:54]} {[%emt 00:00:30]} Qc7 {[%clk 01:28:37]} {[%emt 00:01:06]} 10.
Qd2 {[%clk 01:31:35]} {[%emt 00:00:49]} Nc6 {[%clk 01:28:11]} {[%emt 00:00:56]}
11. Bxf6 {[%emt 00:01:57]} gxf6 {[%clk 01:27:19]} 12. Nd5 {[%clk 01:31:36]}
{[%emt 00:00:24]} Qd8 {[%clk 01:26:48]} {[%emt 00:01:01]} 13. Qh6 {[%clk
01:31:31]} {[%emt 00:00:35]} Nd4 {[%clk 01:25:06]} {[%emt 00:02:13]} 14. Nxf6+
{[%clk 01:31:29]} {[%emt 00:00:32]} Ke7 {[%clk 01:24:51]} {[%emt 00:00:45]} 15.
Nd5+ {[%clk 01:29:38]} {[%emt 00:02:20]} Ke8 {[%clk 01:21:48]} {[%emt
00:03:33]} 16. Qd6 {[%clk 01:29:29]} {[%emt 00:00:38]} f6 {[%clk 01:19:00]}
{[%emt 00:03:18]} 17. Nxf6+ {[%clk 01:29:54]} {[%emt 00:00:07]} Kf7 {[%clk
01:18:14]} {[%emt 00:01:16]} 18. Nxe5+ {[%clk 01:30:20]} {[%emt 00:00:04]} Kg7
{[%clk 01:18:24]} {[%emt 00:00:19]} 19. Nh5+ {[%clk 01:30:46]} {[%emt
00:00:04]} Kg8 {[%clk 01:18:21]} {[%emt 00:00:34]} 20. Ng4 {[%clk 01:30:39]}
{[%emt 00:00:36]} 1-0

[Event "NJSK 2022 Jeugd C"]
[Site "Almelo, Netherlands"]
[Date "2022.05.06"]
[Round "8.9"]
[White "Mohebbinezhad, Parsa"]
[Black "Krylov, Philippe"]
[Result "1/2-1/2"]
[TimeControl "90min + 30sec/move"]
[WhiteElo "1600"]
[BlackElo "1817"]

1. e4 {[%clk 01:30:58]} {[%emt 00:00:02]} e6 {[%clk 01:30:59]} {[%emt
00:00:02]} 2. d4 {[%clk 01:31:12]} {[%emt 00:00:19]} d5 {[%clk 01:31:24]}
{[%emt 00:00:03]} 3. Nc3 {[%clk 01:31:40]} {[%emt 00:00:01]} Nf6 {[%clk
01:31:44]} {[%emt 00:00:11]} 4. exd5 {[%clk 01:31:57]} {[%emt 00:00:13]} exd5
{[%clk 01:30:20]} {[%emt 00:01:55]} 5. Bg5 {[%clk 01:31:25]} {[%emt 00:01:01]}
Be7 {[%clk 01:30:28]} {[%emt 00:00:23]} 6. Nf3 {[%clk 01:31:48]} {[%emt
00:00:06]} O-O {[%clk 01:30:30]} {[%emt 00:00:29]} 7. h3 {[%clk 01:31:38]}
{[%emt 00:00:40]} h6 {[%clk 01:28:17]} {[%emt 00:02:41]} 8. Bf4 {[%clk
01:29:51]} {[%emt 00:02:18]} Bf5 {[%clk 01:26:51]} {[%emt 00:01:56]} 9. Bd3
{[%clk 01:30:03]} {[%emt 00:00:18]} Bxd3 {[%clk 01:27:07]} {[%emt 00:00:14]} 10.
Qxd3 {[%clk 01:30:28]} {[%emt 00:00:04]} Nc6 {[%clk 01:26:39]} {[%emt
00:00:59]} 11. a3 {[%clk 01:30:19]} {[%emt 00:00:39]} Bd6 {[%clk 01:24:59]}
{[%emt 00:02:09]} 12. Bxd6 {[%clk 01:30:21]} {[%emt 00:00:29]} Qxd6 {[%clk
01:25:24]} {[%emt 00:00:05]} 13. O-O {[%clk 01:30:40]} {[%emt 00:00:11]} Rfe8
{[%clk 01:25:15]} {[%emt 00:00:39]} 14. Rfe1 {[%clk 01:30:11]} {[%emt
00:00:59]} a6 {[%clk 01:23:44]} {[%emt 00:02:02]} 15. Na4 {[%clk 01:28:04]}
{[%emt 00:02:37]} Ne4 {[%clk 01:23:09]} {[%emt 00:01:04]} 16. Nd2 {[%clk
01:27:28]} {[%emt 00:01:06]} Qf6 {[%clk 01:18:21]} {[%emt 00:05:18]} 17. Nxe4
{[%clk 01:20:45]} {[%emt 00:07:12]} dxe4 {[%clk 01:18:43]} {[%emt 00:00:09]} 18.
Rxe4 {[%clk 01:21:07]} {[%emt 00:00:07]} Rxe4 {[%clk 01:19:09]} {[%emt
00:00:05]} 19. Qxe4 {[%clk 01:21:31]} {[%emt 00:00:05]} Qxd4 {[%clk 01:19:36]}
{[%emt 00:00:05]} 20. Qxd4 {[%clk 01:19:53]} {[%emt 00:02:08]} Nxd4 {[%clk
01:20:02]} {[%emt 00:00:03]} 21. Rd1 {[%clk 01:17:47]} {[%emt 00:02:36]} Ne6
{[%clk 01:15:35]} {[%emt 00:04:58]} 22. Kf1 {[%clk 01:17:15]} {[%emt 00:01:01]}
Kf8 {[%clk 01:15:56]} {[%emt 00:00:10]} 23. Ke2 {[%clk 01:16:20]} {[%emt
00:01:24]} Ke7 {[%clk 01:14:37]} {[%emt 00:01:50]} 24. Ke3 {[%clk 01:16:11]}
{[%emt 00:00:38]} f5 {[%clk 01:13:30]} {[%emt 00:01:37]} 25. Rd5 {[%clk
01:13:03]} {[%emt 00:03:38]} g6 {[%clk 01:13:23]} {[%emt 00:00:38]} 26. f4
{[%clk 01:09:23]} {[%emt 00:04:10]} Rd8 {[%clk 01:12:03]} {[%emt 00:01:49]} 27.
Rxd8 {[%clk 01:08:38]} {[%emt 00:01:15]} Kxd8 {[%clk 01:12:25]} {[%emt
00:00:08]} 28. b4 {[%clk 01:07:51]} {[%emt 00:01:17]} Kd7 {[%clk 01:09:57]}
{[%emt 00:02:59]} 29. g3 {[%clk 01:07:09]} {[%emt 00:01:12]} b5 {[%clk
01:10:17]} {[%emt 00:00:09]} 30. Nb2 {[%clk 01:04:47]} {[%emt 00:02:52]} Kd6
{[%clk 01:00:10]} {[%emt 00:10:38]} 31. Nd3 {[%emt 00:06:51]} Kd5 32. Ne5
{[%emt 00:00:02]} Kd6 33. Nd3 c5 34. Ne5 {[%emt 00:00:04]} cxb4 {[%emt
00:00:03]} 35. axb4 {[%emt 00:00:04]} Nf8 36. Kd4 {[%emt 00:00:03]} h5 {[%emt
00:00:05]} 1/2-1/2

[Event "NJSK 2022 Jeugd C"]
[Site "Almelo, Netherlands"]
[Date "2022.05.06"]
[Round "8.10"]
[White "Venema, Maxime"]
[Black "Franco, Hugo"]
[Result "1-0"]
[TimeControl "90min + 30sec/move"]
[WhiteElo "1614"]
[BlackElo "1441"]

1. d4 {[%clk 01:30:56]} {[%emt 00:00:03]} Nf6 {[%clk 01:30:56]} {[%emt
00:00:05]} 2. c4 {[%clk 01:31:17]} {[%emt 00:00:08]} e6 {[%clk 01:31:22]}
{[%emt 00:00:07]} 3. Nc3 {[%clk 01:31:31]} {[%emt 00:00:12]} Bb4 {[%clk
01:31:47]} {[%emt 00:00:08]} 4. Qc2 {[%clk 01:31:41]} {[%emt 00:00:18]} b6
{[%clk 01:31:40]} {[%emt 00:00:38]} 5. a3 {[%clk 01:31:32]} {[%emt 00:00:38]}
Bxc3+ {[%clk 01:31:59]} {[%emt 00:00:11]} 6. Qxc3 {[%clk 01:31:51]} {[%emt
00:00:10]} Bb7 {[%clk 01:31:54]} {[%emt 00:00:35]} 7. Bg5 {[%clk 01:31:24]}
{[%emt 00:00:58]} h6 {[%clk 01:30:34]} {[%emt 00:01:50]} 8. Bh4 {[%clk
01:31:19]} {[%emt 00:00:34]} d6 {[%clk 01:26:32]} {[%emt 00:04:33]} 9. Nf3
{[%clk 01:29:36]} {[%emt 00:02:13]} Nbd7 {[%clk 01:24:51]} {[%emt 00:02:11]} 10.
b4 {[%clk 01:27:36]} {[%emt 00:02:30]} g5 {[%clk 01:22:22]} {[%emt 00:02:59]}
11. Bg3 {[%clk 01:27:05]} {[%emt 00:01:00]} Ne4 {[%clk 01:21:27]} {[%emt
00:01:25]} 12. Qc2 {[%clk 01:24:55]} {[%emt 00:02:40]} Qf6 {[%clk 01:21:07]}
{[%emt 00:00:49]} 13. Rd1 {[%clk 01:22:39]} {[%emt 00:02:48]} Nxg3 {[%clk
01:21:15]} {[%emt 00:00:22]} 14. hxg3 {[%clk 01:21:54]} {[%emt 00:01:14]} Bxf3
{[%clk 01:21:11]} {[%emt 00:00:34]} 15. gxf3 {[%clk 01:22:06]} {[%emt
00:00:18]} O-O-O {[%clk 01:15:50]} {[%emt 00:05:52]} 16. Bg2 {[%clk 01:20:56]}
{[%emt 00:01:40]} h5 {[%clk 01:12:02]} {[%emt 00:04:18]} 17. Qa4 {[%clk
01:20:08]} {[%emt 00:01:18]} Nb8 {[%clk 01:10:02]} {[%emt 00:02:30]} 18. c5
{[%clk 01:16:25]} {[%emt 00:04:13]} dxc5 {[%clk 01:09:21]} {[%emt 00:01:11]} 19.
bxc5 {[%clk 01:16:39]} {[%emt 00:00:15]} b5 {[%clk 01:07:40]} {[%emt 00:02:12]}
20. Qxb5 {[%clk 01:15:15]} {[%emt 00:01:54]} Rxd4 {[%clk 01:05:56]} {[%emt
00:02:13]} 21. Rb1 {[%clk 01:13:16]} {[%emt 00:02:30]} Rhd8 {[%clk 01:02:25]}
{[%emt 00:04:01]} 22. Qxb8+ {[%clk 01:13:02]} {[%emt 00:00:44]} Kd7 {[%clk
01:02:41]} {[%emt 00:00:13]} 23. Qb5+ {[%clk 01:09:41]} {[%emt 00:03:52]} Ke7
{[%clk 01:02:39]} {[%emt 00:00:31]} 24. O-O {[%clk 01:03:08]} {[%emt 00:07:04]}
h4 {[%clk 01:02:12]} {[%emt 00:00:57]} 25. Qa5 {[%clk 01:02:26]} {[%emt
00:01:12]} hxg3 {[%clk 01:00:21]} {[%emt 00:02:21]} 26. fxg3 {[%clk 01:02:30]}
{[%emt 00:00:27]} Rh8 {[%clk 00:56:11]} {[%emt 00:04:39]} 27. Qxc7+ {[%clk
01:02:07]} {[%emt 00:00:52]} Rd7 {[%clk 00:56:14]} {[%emt 00:00:28]} 28. Qc6
{[%clk 01:00:57]} {[%emt 00:01:40]} Qd4+ {[%clk 00:54:23]} {[%emt 00:02:19]} 29.
Rf2 {[%clk 00:59:44]} {[%emt 00:01:45]} Kf6 {[%clk 00:51:41]} {[%emt 00:03:11]}
30. Qb5 {[%clk 00:55:30]} {[%emt 00:04:45]} Rd5 {[%clk 00:49:02]} {[%emt
00:03:03]} 31. Qb2 {[%clk 00:54:00]} {[%emt 00:02:05]} Qxb2 {[%clk 00:48:49]}
{[%emt 00:00:44]} 32. Rxb2 {[%clk 00:54:23]} {[%emt 00:00:07]} Rxc5 {[%clk
00:49:15]} {[%emt 00:00:04]} 33. f4 {[%clk 00:53:37]} {[%emt 00:01:16]} gxf4
{[%clk 00:47:56]} {[%emt 00:01:49]} 34. Rxf4+ {[%clk 00:53:36]} {[%emt
00:00:30]} Kg6 {[%clk 00:47:05]} {[%emt 00:01:21]} 35. Rb7 {[%clk 00:53:38]}
{[%emt 00:00:29]} Ra5 {[%clk 00:45:17]} {[%emt 00:02:18]} 36. a4 {[%clk
00:52:39]} {[%emt 00:01:28]} f5 {[%clk 00:45:09]} {[%emt 00:00:38]} 37. Rb5
{[%clk 00:51:05]} {[%emt 00:02:05]} Ra6 {[%clk 00:45:05]} {[%emt 00:00:34]} 38.
a5 {[%clk 00:50:49]} {[%emt 00:00:45]} Re8 {[%clk 00:44:39]} {[%emt 00:00:56]}
39. Rd4 {[%clk 00:49:30]} {[%emt 00:01:49]} e5 {[%clk 00:43:00]} {[%emt
00:02:09]} 40. Rdd5 {[%emt 00:03:24]} Kf6 {[%clk 00:41:46]} 41. Rd7 {[%clk
00:47:38]} {[%emt 00:01:13]} Ke6 {[%clk 00:40:32]} {[%emt 00:01:44]} 42. Rbd5
{[%clk 00:41:46]} {[%emt 00:06:22]} e4 {[%clk 00:37:58]} {[%emt 00:03:03]} 43.
e3 {[%clk 00:41:29]} {[%emt 00:00:48]} Rc8 {[%clk 00:36:36]} {[%emt 00:01:50]}
44. g4 {[%clk 00:37:46]} {[%emt 00:04:15]} fxg4 {[%clk 00:33:43]} {[%emt
00:03:22]} 45. Bxe4 {[%clk 00:38:12]} {[%emt 00:00:05]} Rc4 {[%clk 00:33:37]}
{[%emt 00:00:36]} 46. Bd3 {[%clk 00:37:45]} {[%emt 00:00:57]} Rc1+ {[%clk
00:33:17]} {[%emt 00:00:50]} 47. Kg2 {[%clk 00:37:02]} {[%emt 00:01:13]} Rxa5
{[%clk 00:32:00]} {[%emt 00:01:46]} 48. Bf5+ {[%clk 00:37:10]} {[%emt
00:00:23]} Kf6 {[%clk 00:31:54]} {[%emt 00:00:37]} 49. Rxa5 {[%clk 00:37:32]}
{[%emt 00:00:07]} g3 {[%clk 00:31:06]} {[%emt 00:01:17]} 50. Rd6+ {[%clk
00:37:52]} {[%emt 00:00:11]} Ke7 {[%clk 00:31:14]} {[%emt 00:00:22]} 51. Re6+
{[%clk 00:37:39]} {[%emt 00:00:42]} Kf7 {[%clk 00:31:21]} {[%emt 00:00:26]} 52.
Rxa7+ {[%clk 00:38:04]} {[%emt 00:00:03]} Kf8 {[%clk 00:31:36]} {[%emt
00:00:15]} 53. Rb6 {[%clk 00:38:06]} {[%emt 00:00:29]} 1-0

[Event "NJSK 2022 Jeugd C"]
[Site "Almelo, Netherlands"]
[Date "2022.05.06"]
[Round "8.11"]
[White "Bosma, Jonathan"]
[Black "Lopes, Samuel"]
[Result "0-1"]
[TimeControl "90min + 30sec/move"]
[WhiteElo "884"]
[BlackElo "1600"]

1. d4 {[%clk 01:30:59]} Nf6 {[%clk 01:30:54]} {[%emt 00:00:06]} 2. c4 {[%clk
01:31:20]} {[%emt 00:00:12]} g6 {[%clk 01:31:19]} {[%emt 00:00:02]} 3. Nc3
{[%clk 01:31:45]} {[%emt 00:00:05]} Bg7 {[%clk 01:31:44]} {[%emt 00:00:05]} 4.
Nf3 {[%clk 01:32:03]} {[%emt 00:00:12]} O-O {[%clk 01:32:07]} {[%emt 00:00:08]}
5. Bg5 {[%clk 01:32:29]} {[%emt 00:00:04]} h6 {[%clk 01:32:24]} {[%emt
00:00:12]} 6. Bh4 {[%clk 01:32:55]} {[%emt 00:00:04]} d6 {[%clk 01:32:29]}
{[%emt 00:00:26]} 7. e3 {[%clk 01:33:13]} {[%emt 00:00:11]} Nbd7 {[%clk
01:32:51]} {[%emt 00:00:08]} 8. Qc2 {[%clk 01:33:18]} {[%emt 00:00:25]} e5
{[%clk 01:31:58]} {[%emt 00:01:22]} 9. Rd1 {[%clk 01:33:14]} {[%emt 00:00:35]}
exd4 {[%clk 01:31:25]} {[%emt 00:01:02]} 10. Nxd4 {[%clk 01:33:24]} {[%emt
00:00:20]} a6 {[%clk 01:27:30]} {[%emt 00:04:26]} 11. a3 {[%clk 01:32:03]}
{[%emt 00:01:51]} Qe8 {[%clk 01:27:08]} {[%emt 00:00:51]} 12. Be2 {[%clk
01:32:18]} {[%emt 00:00:15]} Ne5 {[%clk 01:25:13]} {[%emt 00:02:25]} 13. O-O
{[%clk 01:31:07]} {[%emt 00:01:41]} Be6 {[%emt 00:09:43]} 14. Nb1 {[%clk
01:27:08]} {[%emt 00:01:39]} Bd7 {[%clk 01:14:42]} {[%emt 00:04:38]} 15. Nd2
{[%clk 01:25:06]} {[%emt 00:02:32]} Nc6 {[%clk 01:14:01]} {[%emt 00:01:11]} 16.
Bf3 {[%clk 01:21:35]} {[%emt 00:04:02]} g5 {[%clk 01:06:55]} {[%emt 00:07:36]}
17. Bg3 {[%clk 01:21:31]} {[%emt 00:00:33]} h5 {[%clk 01:05:30]} {[%emt
00:01:55]} 18. h3 {[%clk 01:21:06]} {[%emt 00:00:55]} g4 {[%clk 01:03:35]}
{[%emt 00:02:26]} 19. hxg4 {[%clk 01:21:03]} {[%emt 00:00:33]} hxg4 {[%clk
01:03:40]} {[%emt 00:00:24]} 20. Be4 {[%clk 01:19:59]} {[%emt 00:01:34]} Nxd4
{[%clk 01:01:07]} {[%emt 00:03:03]} 21. exd4 {[%clk 01:19:54]} {[%emt
00:00:35]} Ba4 {[%clk 00:59:48]} {[%emt 00:01:49]} 22. b3 {[%clk 01:19:41]}
{[%emt 00:00:44]} Nxe4 {[%clk 00:58:27]} {[%emt 00:01:50]} 23. Nxe4 {[%clk
01:19:14]} {[%emt 00:00:56]} Bxb3 {[%clk 00:57:50]} {[%emt 00:01:08]} 24. Qxb3
{[%clk 01:18:56]} {[%emt 00:00:49]} Qxe4 {[%clk 00:58:06]} {[%emt 00:00:13]} 25.
Qe3 {[%clk 01:18:55]} {[%emt 00:00:32]} Qxe3 {[%clk 00:57:09]} {[%emt
00:01:27]} 26. fxe3 {[%clk 01:19:22]} {[%emt 00:00:02]} Bh6 {[%clk 00:55:20]}
{[%emt 00:02:19]} 27. Bf4 {[%clk 01:18:06]} {[%emt 00:01:46]} Bxf4 {[%clk
00:52:15]} {[%emt 00:03:35]} 28. Rxf4 {[%clk 01:18:19]} {[%emt 00:00:17]} f5
{[%clk 00:52:20]} {[%emt 00:00:25]} 29. Rdf1 {[%clk 01:17:26]} {[%emt
00:01:24]} Rae8 {[%clk 00:52:28]} {[%emt 00:00:21]} 30. Kf2 {[%clk 01:17:19]}
{[%emt 00:00:37]} Re4 {[%clk 00:50:38]} {[%emt 00:02:19]} 31. Rb1 {[%clk
01:11:50]} {[%emt 00:06:00]} Rxf4+ {[%emt 00:01:24]} 32. exf4 {[%clk 01:12:03]}
{[%emt 00:00:15]} b6 {[%clk 00:47:34]} {[%emt 00:02:43]} 33. Ke3 {[%clk
01:11:19]} {[%emt 00:01:14]} Re8+ {[%clk 00:47:24]} {[%emt 00:00:39]} 34. Kd3
{[%clk 01:10:25]} {[%emt 00:01:25]} Kg7 {[%clk 00:46:40]} {[%emt 00:01:13]} 35.
g3 {[%clk 01:10:38]} {[%emt 00:00:17]} Rh8 {[%clk 00:46:19]} {[%emt 00:00:50]}
36. Kc3 {[%clk 01:06:28]} {[%emt 00:04:41]} Rh3 {[%clk 00:45:52]} {[%emt
00:00:57]} 37. Rg1 {[%clk 01:06:44]} {[%emt 00:00:15]} Rh2 {[%clk 00:46:01]}
{[%emt 00:00:19]} 38. Re1 {[%clk 01:05:00]} {[%emt 00:02:15]} Kf7 {[%clk
00:45:07]} {[%emt 00:01:24]} 39. Kb4 {[%clk 01:02:17]} {[%emt 00:03:14]} Rb2+
{[%clk 00:44:11]} {[%emt 00:01:25]} 40. Kc3 {[%clk 01:02:05]} {[%emt 00:00:42]}
Ra2 {[%clk 00:44:22]} {[%emt 00:00:17]} 41. Kb3 {[%clk 01:00:49]} {[%emt
00:01:49]} Rf2 {[%clk 00:44:24]} {[%emt 00:00:27]} 42. Re3 {[%clk 00:58:28]}
{[%emt 00:02:51]} Rf3 {[%clk 00:44:08]} {[%emt 00:00:46]} 43. Rc3 {[%clk
00:58:51]} {[%emt 00:00:07]} c5 {[%clk 00:33:21]} {[%emt 00:11:16]} 44. dxc5
{[%clk 00:57:21]} {[%emt 00:02:01]} bxc5 {[%clk 00:30:20]} {[%emt 00:03:31]} 45.
Kc2 {[%clk 00:56:17]} {[%emt 00:01:34]} Rxc3+ {[%clk 00:29:57]} {[%emt
00:00:54]} 46. Kxc3 {[%clk 00:55:11]} {[%emt 00:01:36]} Ke6 {[%clk 00:30:14]}
{[%emt 00:00:12]} 47. a4 {[%clk 00:55:11]} {[%emt 00:00:30]} d5 {[%clk
00:29:57]} {[%emt 00:00:47]} 48. a5 {[%clk 00:55:22]} {[%emt 00:00:19]} dxc4
{[%clk 00:30:10]} {[%emt 00:00:17]} 49. Kxc4 {[%clk 00:55:49]} {[%emt
00:00:03]} Kd6 {[%clk 00:30:32]} {[%emt 00:00:08]} 50. Kd3 {[%clk 00:55:18]}
{[%emt 00:01:01]} Kd5 {[%clk 00:30:56]} {[%emt 00:00:06]} 51. Kc3 {[%clk
00:55:40]} {[%emt 00:00:08]} c4 {[%clk 00:31:15]} {[%emt 00:00:11]} 52. Kd2
{[%clk 00:53:27]} {[%emt 00:02:43]} Kd4 {[%emt 00:00:18]} 53. Kc2 {[%clk
00:53:43]} {[%emt 00:00:09]} c3 {[%clk 00:31:58]} {[%emt 00:00:05]} 54. Kc1
{[%emt 00:00:37]} Kd3 {[%emt 00:00:44]} 55. Kd1 {[%emt 00:01:59]} Ke3 {[%clk
00:29:55]} {[%emt 00:00:05]} 56. Kc2 {[%clk 00:53:24]} {[%emt 00:01:26]} Kf3
{[%clk 00:30:18]} {[%emt 00:00:08]} 57. Kxc3 {[%clk 00:53:48]} {[%emt
00:00:05]} Kxg3 {[%clk 00:30:42]} {[%emt 00:00:05]} 58. Kc4 {[%clk 00:54:11]}
{[%emt 00:00:08]} Kxf4 {[%clk 00:31:04]} {[%emt 00:00:08]} 59. Kc5 {[%clk
00:54:34]} {[%emt 00:00:07]} g3 {[%clk 00:31:27]} {[%emt 00:00:07]} 60. Kb6
{[%clk 00:55:00]} {[%emt 00:00:05]} g2 {[%clk 00:31:47]} {[%emt 00:00:10]} 61.
Kxa6 {[%clk 00:55:27]} {[%emt 00:00:02]} g1=Q {[%clk 00:32:01]} {[%emt
00:00:16]} 62. Kb7 {[%clk 00:55:46]} {[%emt 00:00:11]} Qg7+ {[%clk 00:32:22]}
{[%emt 00:00:08]} 63. Kb6 {[%clk 00:56:05]} {[%emt 00:00:12]} Ke3 {[%clk
00:32:40]} {[%emt 00:00:12]} 64. a6 {[%clk 00:56:19]} {[%emt 00:00:16]} f4
{[%clk 00:32:57]} {[%emt 00:00:12]} 65. a7 {[%clk 00:56:47]} {[%emt 00:00:03]}
Qg2 {[%clk 00:32:49]} {[%emt 00:00:38]} 66. Kc5 {[%clk 00:54:57]} {[%emt
00:02:19]} Qa8 {[%clk 00:33:00]} {[%emt 00:00:19]} 67. Kb6 {[%clk 00:55:06]}
{[%emt 00:00:22]} f3 {[%clk 00:33:25]} {[%emt 00:00:05]} 68. Ka6 {[%clk
00:54:28]} {[%emt 00:01:07]} f2 {[%clk 00:33:46]} {[%emt 00:00:09]} 69. Kb6
{[%clk 00:54:56]} {[%emt 00:00:03]} Kd4 {[%clk 00:33:46]} {[%emt 00:00:30]} 70.
Kb5 {[%clk 00:54:03]} {[%emt 00:01:23]} f1=Q+ {[%clk 00:34:03]} {[%emt
00:00:14]} 71. Kb4 {[%clk 00:54:08]} {[%emt 00:00:12]} Qb7+ {[%clk 00:34:17]}
{[%emt 00:00:28]} 0-1